[Event "Silves Open 2025"]
[Site "Fissul"]
[Date "2025.03.05"]
[Round "7.6"]
[White "Degardin, Sylvain"]
[Black "Serarols Mabras, Bernat"]
[Result "0-1"]
[Annotator "TA"]
[ECO "B33"]
[WhiteElo "2309"]
[BlackElo "2311"]
[PlyCount "84"]
[EventDate "2025.03.03"]
[EventType "swiss"]
[EventCountry "POR"]
[SourceTitle "playchess.com"]
[Source "ChessBase"]
[SourceQuality "1"]
[TimeControl "5400+30"]

{[%evp 15,84,39,35,36,27,38,37,17,16,25,75,40,109,112,68,0,0,0,0,1,36,-60,-59,-62,-43,-110,-116,-118,-101,-73,-93,-139,-149,-265,-87,-113,-97,-124,-113,-218,-189,-175,-159,-320,-310,-297,-252,-245,-164,-154,-128,-130,-137,-124,-66,-52,0,-202,-197,-398,-99,-112,-105,-140,-98,-1093,-1089,-5197,-539,-4766,-1875]} 1. e4 {[%emt 0:00:02]} c5 {[%emt 0:04:29]} 2. Nf3 {[%emt 0:00:23]} Nc6 {[%emt 0:00:06]} 3. d4 {[%emt 0:00:18]} cxd4 {[%emt 0:00:02]} 4. Nxd4 {[%emt 0:00:09]} Qb6 {[%emt 0:00:02]} 5. Nb3 {[%emt 0:00:41]} e6 {[%emt 0:00:09]} 6. Nc3 {[%emt 0:02:19]} a6 {[%emt 0:02:37]} 7. Bd3 {[%emt 0:01:59]} Nf6 {[%emt 0:04:10]} 8. Be3 {[%emt 0:01:15]} Qc7 {[%emt 0:00:13]} 9. f4 {[%emt 0:00:35] B33: Sicilian: Pelikan and Sveshnikov Variations.} b5 {[%emt 0:18:14][%cal Bb7b5,Bb5b4][%mdl 32]} 10. e5 {[%emt 0:08:36]} b4 $1 {[%emt 0:07:38]} 11. Ne4 {[%emt 0:01:45] White is slightly better.} (11. Na4 $5 Nd5 $8 12. Qf3 $11) 11... Nxe4 {[%emt 0:13:52]} 12. Bxe4 {[%emt 0:00:21]} Rb8 $146 {[%emt 0:02:20]} (12... Bb7 $11 {keeps the balance.}) (12... Bb7 13. Nc5 Be7 14. Nxb7 Qxb7 15. Qd3 f5 16. exf6 gxf6 17. f5 d5 18. Bf3 O-O-O {1-0 Skuhala,J (2378)-Plenkovic,Z (2375) CRO Cup Vodice 2022 (5.4)}) 13. O-O {[%emt 0:07:18]} d5 {[%emt 0:09:40]} (13... Bb7 $14) 14. exd6 $16 {[%emt 0:02:20]} Bxd6 {[%emt 0:00:15]} 15. Qf3 {[%emt 0:07:30]} (15. c3 $14) 15... Ne7 $11 {[%emt 0:03:05]} 16. Rad1 {[%emt 0:02:43]} f5 {[%emt 0:05:12]} 17. Bd3 {[%emt 0:02:00]} O-O {[%emt 0:00:17]} (17... Nd5 18. Bxf5 O-O 19. Rxd5 exd5 20. Qxd5+ Kh8) 18. Bd2 {[%emt 0:27:50]} (18. Bc4 $1 $14) 18... Nd5 {[%emt 0:04:37]} 19. Kh1 {[%emt 0:06:46]} Bb7 {[%emt 0:03:49][%cal Od5f4]} (19... Rf6 $5 20. Nd4 Bb7 $17) 20. Qf2 {[%emt 0:01:31]} (20. Qe2 $15) 20... Rf6 $17 {[%emt 0:01:57]} 21. Be2 {[%emt 0:07:16]} Rg6 {[%emt 0:07:38][%cal Od5f4]} (21... Rh6 {with more complications.} 22. Bf3 Nxf4 23. g3 Nh3) 22. Bf3 {[%emt 0:02:38]} Nxf4 {[%emt 0:02:07]} 23. Bxf4 {[%emt 0:01:30]} (23. Bxb7 $142 Qxb7 (23... Qxc2 $2 24. Rc1 $18) 24. Bxf4 Bxf4 25. Nc5) 23... Bxf4 {[%emt 0:00:19]} 24. Bxb7 {[%emt 0:00:37]} (24. h3 $17 {was necessary.}) 24... Qxb7 $2 {[%emt 0:01:34]} (24... Bxh2 $19 {and Black stays clearly on top.} 25. Bd5 (25. Bxa6 $2 Rh6 $19) 25... exd5) 25. Rd3 {[%emt 0:04:06][%cal Ob3c5]} Re8 {[%emt 0:01:55]} 26. Nc5 {[%emt 0:01:27]} Qc6 {[%emt 0:00:41]} 27. Rf3 {[%emt 0:03:48]} (27. c3 $17) 27... Bb8 {[%emt 0:01:21]} 28. Nd3 {[%emt 0:00:50]} Rh6 {[%emt 0:00:47]} 29. h3 {[%emt 0:00:40]} (29. g3 $17 {only move.}) 29... Qc7 $19 {[%emt 0:02:45][%csl Gb8][%cal Rc7h2]} 30. g4 {[%emt 0:00:24]} Qb7 {[%emt 0:01:26]} (30... fxg4 31. Rf8+ Rxf8 32. Qxf8#) 31. Qg2 {[%emt 0:00:17]} Qd5 {[%emt 0:01:21]} 32. Nxb4 {[%emt 0:03:21]} Qd6 {[%emt 0:00:23]} 33. Rf4 {[%emt 0:00:03]} e5 {[%emt 0:01:17]} (33... Qxf4 34. Rxf4 Bxf4 35. Qf3 $15) 34. Rc4 {[%emt 0:00:55]} fxg4 {[%emt 0:00:20]} (34... e4 $1 $17 35. gxf5 Kh8) 35. Rxg4 $15 {[%emt 0:00:24] [#]} e4 {[%emt 0:00:23][%csl Oe4] Black has a strong passed pawn} (35... Kh8 $1 $15 36. Rf7 Qd1+ (36... e4 37. Rxe4 Rg8 38. Rg4 $17) 37. Rf1 Qd7) 36. Rxg7+ $2 {[%emt 0:00:58]} (36. Nxa6 $1 $11 {and White is okay.} Qxa6 37. Rxg7+ Kh8 38. Re7) 36... Kh8 $19 {[%emt 0:00:02]} 37. Rg1 $2 {[%emt 0:02:13]} (37. Nxa6 Qxa6 38. Re7) 37... Qe6 $2 {[%emt 0:00:25]} (37... Qxb4 38. Rg8+ Rxg8 39. Qxg8#) (37... Qf8 $1 $19 {[%cal Rf8f3] White must now prevent ...Qf3!.} 38. Rg4 Ba7 (38... Qxb4 39. Rg8+ Rxg8 40. Qxg8#)) 38. Rg4 $17 {[%emt 0:00:21][%cal Ob4c6] [#]} e3 $1 {[%emt 0:01:25][%mdl 1024] Black has strong compensation.} 39. Nd3 {[%emt 0:00:41]} e2 $1 $40 {[%emt 0:00:19][%cal Oh6f6][%mdl 128] Black plays in the center Black goes for the king.} (39... Qxa2 40. b3 Rg6 41. Rxg6) 40. Ne1 $2 {[%emt 0:00:09][%mdl 8192]} (40. Rh4 $17 Qc6 (40... Rxh4 41. Qg7#) 41. Rxh6 Qxh6 42. a4) 40... Ba7 $1 $19 {[%emt 0:00:17] Black is clearly winning.} (40... Qxa2 41. b3) 41. Rh4 {[%emt 0:01:02] [#]} Bd4 $1 {[%emt 0:00:49][%mdl 512] Active counter play!} 42. Qg4 {[%emt 0:00:29]} (42. Rxh6 Qxh6) 42... Rxh4 {[%emt 0:00:19] Weighted Error Value: White=0.82/Black=0.43  Loses game:     	White=3     	---        Missed win:     	---       	Black=2      Mistake:       	White=7     	Black=4      Inaccurate:     	White=3     	Black=2      OK:         	White=5     	Black=9      Best:        	White=6     	---        Strong:       	---       	Black=4} (42... Qd5+ $142 43. Qg2 Qxg2+ (43... Rxh4 $2 {perishes.} 44. Qxd5 Bxg1 45. Qf7 $18) 44. Rxg2 Rxh4) 0-1

[Event "Silves Open 2025"]
[Site "Fissul"]
[Date "2025.03.05"]
[Round "7.7"]
[White "Espinosa Aranda, Angel"]
[Black "Adams, Philip"]
[Result "1-0"]
[Annotator "TA"]
[ECO "B04"]
[WhiteElo "2442"]
[BlackElo "1903"]
[PlyCount "87"]
[EventDate "2025.03.03"]
[EventType "swiss"]
[EventCountry "POR"]
[SourceTitle "playchess.com"]
[Source "ChessBase"]
[SourceQuality "1"]
[TimeControl "5400+30"]

{[%evp 10,87,40,43,48,56,83,45,46,11,16,7,26,0,25,14,10,-9,39,29,26,37,42,31,44,30,30,25,37,10,26,14,42,0,14,18,29,29,24,19,47,43,59,53,44,47,37,39,50,37,87,70,75,77,76,68,64,79,193,187,162,64,72,67,68,63,67,39,43,48,106,107,344,329,398,396,587,558,517,489]} 1. e4 {[%emt 0:00:04]} Nf6 {[%emt 0:00:21]} 2. e5 {[%emt 0:00:54]} Nd5 {[%emt 0:00:06]} 3. d4 {[%emt 0:00:47]} d6 {[%emt 0:00:06]} 4. Nf3 {[%emt 0:00:16]} dxe5 {[%emt 0:00:12]} 5. Nxe5 {[%emt 0:00:07]} c6 {[%emt 0:00:12]} 6. Be2 {[%emt 0:02:53]} Bf5 {[%emt 0:00:25] B04: Alekhine's Defence: 4 Nf3.} 7. O-O {[%emt 0:00:37]} e6 {[%emt 0:00:35]} 8. a3 {[%emt 0:08:09]} Nd7 {[%emt 0:00:50] White is slightly better.} 9. Nf3 {[%emt 0:00:51]} Bd6 {[%emt 0:00:32]} 10. Re1 {[%emt 0:00:13]} O-O {[%emt 0:02:05]} 11. Nbd2 {[%emt 0:00:33]} Rc8 $146 {[%emt 0:06:33]} (11... h6 12. Nc4 Bc7 13. h3 c5 14. Ne3 Nxe3 15. Bxe3 Qe7 16. Bb5 Rfd8 17. Qe2 cxd4 18. Bxd4 {1-0 Gaponenko,I (2473)-Mohota,N (2311) WMSG Rapid 1st (Women) 2008 (1)}) 12. Nc4 {[%emt 0:00:49]} Bb8 {[%emt 0:01:35]} 13. Nce5 {[%emt 0:01:37]} c5 {[%emt 0:06:45]} (13... Nxe5 $11 14. Nxe5 c5) 14. Nxd7 $14 {[%emt 0:03:32]} Qxd7 {[%emt 0:00:10]} 15. dxc5 {[%emt 0:00:17]} Rxc5 {[%emt 0:09:48]} 16. c4 {[%emt 0:01:42][%cal Oc1e3] [#] White has a queen side majority} Nf6 {[%emt 0:04:03]} 17. b4 {[%emt 0:01:41]} Qxd1 {[%emt 0:04:44]} 18. Rxd1 {[%emt 0:00:26]} Rcc8 {[%emt 0:00:36]} 19. Be3 {[%emt 0:09:01]} e5 {[%emt 0:06:24]} 20. Nd2 {[%emt 0:16:24][%cal Bf3d2,Bd2f1,Bf1e3,Be3d5][%mdl 32]} b6 {[%emt 0:09:43] Not much happening anymore} 21. Bg5 {[%emt 0:10:02]} Rfe8 {[%emt 0:14:18]} 22. Rac1 {[%emt 0:06:20]} h6 {[%emt 0:11:08]} 23. Bxf6 {[%emt 0:03:52]} gxf6 {[%emt 0:00:02]} 24. g4 {[%emt 0:00:15]} Bg6 {[%emt 0:00:55]} 25. Nf1 {[%emt 0:00:09]} Red8 {[%emt 0:06:43]} 26. Ne3 {[%emt 0:00:12]} Rd4 {[%emt 0:04:28]} 27. Nd5 {[%emt 0:04:03]} Kg7 {[%emt 0:00:19]} 28. Rxd4 {[%emt 0:01:55]} exd4 {[%emt 0:00:02]} 29. Rd1 $1 {[%emt 0:00:07]} d3 {[%emt 0:00:43]} 30. Bxd3 $16 {[%emt 0:00:04]} Bxd3 {[%emt 0:00:16]} 31. Rxd3 {[%emt 0:00:02]} Rxc4 {[%emt 0:00:11][%mdl 4096] Endgame [#] KRB-KRN} 32. Ne3 {[%emt 0:00:01]} Rc1+ {[%emt 0:02:37]} 33. Kg2 {[%emt 0:00:04]} Ra1 {[%emt 0:00:57]} (33... Be5 $16) 34. h4 {[%emt 0:01:26][%cal Bh2h4,Bh4h5][%mdl 32]} h5 {[%emt 0:01:53]} 35. gxh5 {[%emt 0:05:32]} (35. Nf5+ $18 Kg6 36. Rd8 (36. Ne7+ Kh7 $18)) 35... Kh6 $1 $14 {[%emt 0:01:10]} 36. Ng4+ {[%emt 0:00:22]} Kxh5 {[%emt 0:00:18]} 37. Nxf6+ {[%emt 0:00:03]} Kg6 {[%emt 0:01:56]} 38. Rf3 {[%emt 0:05:56]} Be5 {[%emt 0:01:03]} 39. h5+ {[%emt 0:00:03]} Kg5 {[%emt 0:00:55]} (39... Kg7 $1 $14 40. h6+ Kg6) 40. Ne4+ $16 {[%emt 0:00:12]} Kg4 $2 {[%emt 0:00:33] Loses the game.} (40... Kh6 $16 {was worth a try.}) 41. Rxf7 $18 {[%emt 0:00:48]} Rxa3 {[%emt 0:00:54][%cal Oa7a5]} 42. h6 {[%emt 0:00:53] Hoping for h7.} Kh5 {[%emt 0:02:33]} (42... Rd3 $142 43. f4 (43. Rxa7 Kf5 $18) 43... Bd4) 43. Rf5+ {[%emt 0:00:16]} Kxh6 {[%emt 0:00:06]} 44. Rxe5 {[%emt 0:19:00] Weighted Error Value: White=0.11 (very precise) /Black=0.30  Loses game:     	---       	Black=1      Mistake:       	White=1     	Black=5      Inaccurate:     	White=6     	Black=3      OK:         	White=12    	Black=10     Best:        	White=7     	Black=3      Strong:       	White=1     	Black=1} 1-0

[Event "Silves Open 2025"]
[Site "Fissul"]
[Date "2025.03.05"]
[Round "7.8"]
[White "Milat, Marcel"]
[Black "Kuegel, Tobias"]
[Result "1-0"]
[Annotator "TA"]
[ECO "E94"]
[WhiteElo "2190"]
[BlackElo "2423"]
[PlyCount "85"]
[EventDate "2025.03.03"]
[EventType "swiss"]
[EventCountry "POR"]
[SourceTitle "playchess.com"]
[Source "ChessBase"]
[SourceQuality "1"]
[TimeControl "5400+30"]

{[%evp 20,85,43,42,44,35,43,40,22,5,0,2,-2,-16,-19,0,-17,0,-12,0,-20,-26,-5,-62,-62,-60,-68,-40,-33,-38,-43,-44,-19,-29,0,-70,-66,-87,0,-45,0,-29,0,-12,0,0,0,0,362,362,358,358,353,340,341,329,474,397,693,679,583,538,2187,476,2292,2188,29980,29981]} 1. d4 {[%emt 0:00:02]} Nf6 {[%emt 0:06:36]} 2. c4 {[%emt 0:00:23]} g6 {[%emt 0:00:05]} 3. Nc3 {[%emt 0:00:28]} Bg7 {[%emt 0:00:12]} 4. e4 {[%emt 0:00:34]} d6 {[%emt 0:00:02]} 5. Nf3 {[%emt 0:01:30][%cal Bg1f3,Bf3d4,Bd4c2,Bc2e3][%mdl 32]} O-O {[%emt 0:00:05]} 6. Be2 {[%emt 0:00:07]} e5 {[%emt 0:00:08]} 7. O-O {[%emt 0:00:24]} exd4 {[%emt 0:00:07]} 8. Nxd4 {[%emt 0:00:09]} Re8 {[%emt 0:00:01]} 9. f3 {[%emt 0:00:25]} c6 {[%emt 0:00:02]} 10. Kh1 {[%emt 0:06:55]} Nbd7 {[%emt 0:00:25]} 11. Nc2 {[%emt 0:13:28]} Nb6 {[%emt 0:02:46] E94: King's Indian: Classical: 6 Be2 e5 7 0-0: Various Black 7th moves.} 12. Bg5 {[%emt 0:17:39][%cal Oc4c5]} h6 {[%emt 0:03:21]} 13. Bh4 {[%emt 0:00:08]} Be6 {[%emt 0:00:05] White is slightly better.} 14. Ne3 {[%emt 0:09:59]} g5 $1 {[%emt 0:01:40]} 15. Bf2 {[%emt 0:01:30]} d5 {[%emt 0:02:36]} 16. cxd5 {[%emt 0:00:05]} cxd5 {[%emt 0:00:37] [#] ...d4 is the strong threat.} 17. Nf5 {[%emt 0:04:42]} (17. Bb5 d4 18. Bxe8 Nxe8 $17) 17... Bxf5 {[%emt 0:02:02]} 18. exf5 {[%emt 0:00:01]} Nc4 {[%emt 0:04:42]} 19. Bxc4 {[%emt 0:04:20]} dxc4 {[%emt 0:00:12]} 20. Qa4 {[%emt 0:00:09][%csl LRa7,LRc4]} Qc7 {[%emt 0:08:50]} 21. Rfe1 {[%emt 0:17:44]} ({White should play} 21. b3 $11) 21... a6 $146 {[%emt 0:04:29]} (21... Rxe1+ 22. Rxe1 a6 23. Bg3 Qc5 24. Qc2 b5 25. h4 g4 26. fxg4 Qd4 27. g5 Qg4 28. gxf6 Qxg3 29. Qe4 Bf8 30. Re3 {1-0 Hrbolka,L-Ac,M (2220) Bratislava Slovan op 1989 (10.12)}) 22. Rxe8+ {[%emt 0:00:57]} Rxe8 {[%emt 0:01:12]} 23. Rd1 {[%emt 0:01:46]} Qc8 {[%emt 0:03:42][%cal Ob7b5]} 24. Bb6 {[%emt 0:00:48]} h5 {[%emt 0:11:57]} 25. Kg1 {[%emt 0:05:07]} h4 {[%emt 0:04:21]} 26. h3 {[%emt 0:00:15]} Bf8 {[%emt 0:11:30]} 27. Kh1 {[%emt 0:01:11]} (27. Nd5 $11 Nxd5 (27... Qxf5 28. Nxf6+ Qxf6 29. Qxe8 $16) 28. Rxd5) 27... Nh5 {[%emt 0:03:11]} (27... Qxf5 28. Qxc4 Qg6 29. Qd4 $11) 28. Kh2 {[%emt 0:05:45]} Nf6 {[%emt 0:06:06] Against Ne4} 29. Kh1 {[%emt 0:00:27]} Kh7 {[%emt 0:16:26][%cal Oe8e5]} 30. Kh2 {[%emt 0:01:12]} Kh6 {[%emt 0:01:48][%cal Oe8e5]} (30... Qxf5 {keeps more tension.} 31. Qxc4 Re6 32. Qb3 Bd6+) 31. Kh1 {[%emt 0:00:18]} Bc5 {[%emt 0:00:51]} 32. Bxc5 {[%emt 0:03:34]} Qxc5 {[%emt 0:00:05]} 33. Ne4 {[%emt 0:00:05]} (33. Nd5 $5 Qf2 $8 (33... b5 $2 34. Qxa6 $18) 34. Nxf6 Re1+ 35. Rxe1 Qxe1+ 36. Kh2 Qe5+ 37. f4 Qxf4+ (37... Qxf6 38. Qxc4 Qxf5 39. fxg5+ Kxg5 40. Qc3 $11) 38. Kh1 Qf1+ 39. Kh2 Qf4+ $11) 33... Nxe4 {[%emt 0:05:58][%mdl 8192]} (33... Qxf5 $2 34. Nd6 (34. Qxc4 Nxe4 35. fxe4 Rxe4 $17) (34. Nxf6 b5 $16) 34... Qe6 35. Nxe8 (35. Qxc4 Qxc4 36. Nxc4 b5 $17) 35... Nxe8 36. Qd7 $18) (33... Rxe4 $1 $11 {and Black is okay.} 34. fxe4 Nxe4) 34. Qxe8 $11 {[%emt 0:00:06][%cal Re8h8][%mdl 4096] [#] Endgame KQR-KQN} Ng3+ {[%emt 0:00:09]} ({But not} 34... Nf2+ $2 35. Kh2 Qxf5 (35... Qc7+ $2 36. Kg1 $18) 36. Qh8+ Kg6 37. Rd6+ f6 38. Qe8+ Kh6 39. Qe6 $18) 35. Kh2 {[%emt 0:00:15][%cal Re8h8]} Nxf5 {[%emt 0:01:01]} 36. Qxf7 {[%emt 0:01:00]} Qe5+ {[%emt 0:00:25]} 37. Kg1 {[%emt 0:00:33]} Qe3+ {[%emt 0:00:24]} (37... b5 {was necessary.} 38. Qd5 (38. Qf8+ Kh5 $18) 38... Qe2) 38. Kh1 $18 {[%emt 0:00:07] Strongly threatening Qf6+.} Ng3+ $2 {[%emt 0:00:29]} (38... Qe2) 39. Kh2 {[%emt 0:00:05]} Qe5 {[%emt 0:00:10] Inhibits Rd6+.} 40. Qd5 {[%emt 0:02:05]} Qe2 {[%emt 0:00:46]} 41. Qd7 {[%emt 0:00:44]} (41. Qd6+ $142 Kh5 42. Qd7) 41... Nf1+ {[%emt 0:00:38]} (41... Nf5 $142 42. Qd2 Qe5+ 43. Kg1 Kg6) 42. Kg1 {[%emt 0:00:10] Threatening mate with Rd6+.} Qe3+ {[%emt 0:00:40]} 43. Kxf1 {[%emt 0:00:12] Weighted Error Value: White=0.29 (precise) /Black=0.97  Loses game:     	---       	Black=1      Mistake:       	White=3     	Black=3      Inaccurate:     	White=1     	Black=5      OK:         	White=14    	Black=9      Best:        	White=3     	Black=1      Strong:       	---       	Black=1} 1-0

[Event "Silves Open 2025"]
[Site "Fissul"]
[Date "2025.03.05"]
[Round "7.9"]
[White "Sarabando, Rodrigo Andias"]
[Black "Goncalves, Samuel Jesus P"]
[Result "1-0"]
[Annotator "TA"]
[ECO "A60"]
[WhiteElo "2097"]
[BlackElo "2280"]
[PlyCount "91"]
[EventDate "2025.03.03"]
[EventType "swiss"]
[EventCountry "POR"]
[SourceTitle "playchess.com"]
[Source "ChessBase"]
[SourceQuality "1"]
[TimeControl "5400+30"]

{[%evp 11,91,29,37,0,0,-39,-23,-73,-67,-55,52,-81,-55,-63,-77,-75,-73,-181,-168,-179,-130,-152,0,12,572,582,771,760,769,0,0,-84,-91,-115,28,-68,199,188,186,0,41,44,152,54,114,125,149,61,293,0,61,-73,0,-175,-194,-195,-204,-199,-198,-184,-183,-190,-168,-251,-226,-463,-459,-460,-431,-460,-435,-551,0,0,0,0,169,170,29994,29995,29998,29999]} 1. d4 {[%emt 0:00:02]} Nf6 {[%emt 0:00:06]} 2. c4 {[%emt 0:00:10]} e6 {[%emt 0:00:06]} 3. g3 {[%emt 0:00:09]} c5 {[%emt 0:00:04]} 4. d5 {[%emt 0:00:04]} exd5 {[%emt 0:00:05]} 5. cxd5 {[%emt 0:00:02]} b5 {[%emt 0:00:11]} 6. Bg2 {[%emt 0:06:48]} d6 {[%emt 0:00:28]} 7. e4 {[%emt 0:04:55] A60: Modern Benoni: Early Divergences.} g6 {[%emt 0:04:34]} 8. Qe2 {[%emt 0:03:05][%cal Oe4e5]} Ba6 {[%emt 0:10:19]} 9. Na3 $146 {[%emt 0:18:24]} (9. a3 $11 {remains equal.}) (9. f4 b4 10. Qc2 Bg7 11. e5 dxe5 12. Qxc5 Nbd7 13. Qxb4 Rc8 14. Be3 Ng4 15. Qa3 Nxe3 16. Qxe3 {0-1 Gleizerov,E (2575)-Lobron,E (2524) Bayern-chI Bank Hofmann 5th 2001 (5)}) 9... b4 {[%emt 0:11:50]} 10. Nc4 $1 {[%emt 0:00:06]} Qe7 {[%emt 0:00:04]} (10... Bg7 $15) 11. b3 {[%emt 0:08:33]} (11. a3 $14) 11... Bg7 $17 {[%emt 0:19:20]} 12. Bb2 {[%emt 0:06:10]} Nbd7 {[%emt 0:05:42]} 13. Rd1 {[%emt 0:11:32]} O-O {[%emt 0:04:58]} 14. f3 {[%emt 0:02:27]} (14. Nh3 $17 {was necessary.}) 14... Nb6 $19 {[%emt 0:03:34]} 15. Nh3 {[%emt 0:09:36]} Rad8 {[%emt 0:06:08]} (15... Rae8 $19 {[%cal Of6d5]} 16. Nf2 Nbxd5) 16. Rd2 {[%emt 0:26:27] [#]} Nfxd5 $2 {[%emt 0:06:10]} 17. Bxg7 $11 {[%emt 0:00:00]} Rde8 $2 {[%emt 0:00:16][%mdl 8192] [#]} 18. Nxb6 $1 $18 Kxg7 {[%emt 0:05:17]} (18... Bxe2 19. Nxd5) 19. Nxd5 Bxe2 {[%emt 0:00:49]} 20. Rxe2 $2 {[%emt 0:00:00]} ({White must play} 20. Nxe7 $18 Bxf3 21. Bxf3 Rxe7 22. O-O (22. Rxd6 c4 $18)) 20... Qb7 $11 {[%emt 0:02:14][%cal Oc5c4]} 21. Ndf4 {[%emt 0:00:00] [#]} (21. Ne3 $11) 21... c4 $1 $17 {[%emt 0:03:23]} 22. bxc4 {[%emt 0:00:00]} f5 {[%emt 0:00:05] Black is weak on the light squares} (22... Rc8 $17 23. O-O Rxc4) 23. Ng5 {[%emt 0:00:00]} (23. O-O $11) 23... Qb6 $2 {[%emt 0:04:57][%mdl 8192]} (23... Qc8 $15 24. O-O h6) 24. Nge6+ $18 {[%emt 0:00:00] A dynamic duo of knights.} Kh8 {[%emt 0:03:18]} 25. Bh3 $2 {[%emt 0:01:49]} (25. Nd5 $18 Qa6 26. Nxf8) 25... Rf7 {[%emt 0:03:38]} (25... fxe4 $5 26. Nxf8 Rxf8 27. Rxe4 Qa6 $11) 26. exf5 {[%emt 0:00:36]} a5 {[%emt 0:00:15]} (26... gxf5 $14 27. Kf1 Qc6) 27. Kf1 (27. fxg6 $16 hxg6 28. Nxg6+ Kg8 29. Ngf4) 27... gxf5 {[%emt 0:03:18]} (27... Qc6 $1 $14) 28. Kg2 $16 {[%emt 0:01:36]} b3 {[%emt 0:00:21]} 29. axb3 {[%emt 0:00:58]} (29. Rb1 $1 $16 {[%cal Rb1b3]}) 29... a4 {[%emt 0:00:06]} (29... Qxb3 $14 30. Ra1 a4) 30. Rc1 $2 ({Better is} 30. bxa4 $18 {aiming for Rd1.} Qb3 31. a5) 30... Qxb3 (30... axb3 $11 31. Rb1 Qb4) 31. Ra1 {[%emt 0:01:02] White is more active.} (31. c5 dxc5 (31... Rf6 $2 32. c6 $18) 32. Rxc5 a3 $15) (31. Rd2 $1 $14 {stays ahead.}) 31... Qxc4 {[%emt 0:01:00]} ({Black should play} 31... a3 $1 $17) 32. Rea2 $2 {[%emt 0:00:12]} (32. Raa2 $11 {and White has nothing to worry.}) 32... Rxe6 $19 {[%emt 0:00:31]} 33. Nxe6 {[%emt 0:00:49]} Qxe6 {[%emt 0:00:05]} 34. Rxa4 {[%emt 0:00:03]} Qe2+ {[%emt 0:02:11]} 35. Kg1 {[%emt 0:00:05]} f4 {[%emt 0:01:33]} (35... Qxf3 36. Rf4 Qe3+ 37. Kh1) 36. Bg2 {[%emt 0:02:10]} d5 {[%emt 0:00:21][%cal Od5d4]} 37. gxf4 {[%emt 0:00:28]} (37. Kh1 $142) 37... d4 {[%emt 0:00:48]} 38. R4a2 $2 {[%emt 0:00:19] Inhibits d3.} (38. Kh1) 38... Qe3+ {[%emt 0:00:14]} 39. Kh1 {[%emt 0:00:05]} Rc7 {[%emt 0:00:32] ( -> ...Rc1+)} (39... Qxf4 $2 40. Ra3 $19) 40. Bf1 {[%emt 0:01:10]} d3 {[%emt 0:00:40]} (40... Qxf4 41. Ra3 $19) 41. Rg2 {[%emt 0:00:22] [#] Ra8+ would kill now.} h5 $2 {[%emt 0:00:47]} (41... Qxf3 42. Bxd3 Rc8 43. Bf1 $17) (41... Rc8 $1 $19 42. Raa2 Qxf3 (42... Qxf4 $2 43. Rgf2 $19)) 42. Ra8+ $1 $11 {[%emt 0:00:19]} Kh7 {[%emt 0:00:07]} 43. Rd8 $1 {[%emt 0:00:02] The board is on fire.} Qc1 $2 {[%emt 0:01:01] [#]} (43... Qxf4 44. Bxd3+ (44. Rxd3 Rc1 $15)) (43... Rc3 $11 {and Black has nothing to worry.}) 44. Rg1 $1 $18 {[%emt 0:00:16]} Qc6 $2 {[%emt 0:00:29]} ({And not} 44... d2 45. Bd3+ Kh6 46. Rd6#) (44... Rc3 $18) 45. Bxd3+ {[%emt 0:00:08]} Kh6 {[%emt 0:00:08]} 46. Rh8+ {[%emt 0:00:02] Weighted Error Value: White=0.68/Black=0.83  Loses game:     	White=1     	Black=4      Missed win:     	White=2     	Black=1      Mistake:       	White=9     	Black=9      Inaccurate:     	White=1     	Black=2      OK:         	White=4     	Black=9      Best:        	White=6     	Black=5      Strong:       	White=4     	---} 1-0